bitfinex/quotes_ETHUSD_20250505
["timestamp","ask_amount","ask_price","bid_price","bid_amount"]
[1746469760986,0.30837083,1821.1,1820.9,5.49169319]
[1746469761891,0.30837083,1821.0,1820.9,5.49169319]
[1746469764501,0.752,1821.2,1821.0,5.49120918]
[1746469764689,0.752,1821.2,1821.0,10.98245853]
[1746469764993,0.752,1821.2,1821.0,5.49120918]
[1746469765297,0.3081396,1821.1,1821.0,5.49120918]
[1746469772142,0.3081396,1821.1,1820.9,10.9832177]
[1746469772322,0.752,1821.2,1820.9,10.9832177]
[1746469773828,0.30807667,1821.1,1820.9,10.9832177]
[1746469774026,0.30807667,1821.1,1820.9,5.49160215]
[1746469774329,0.30807667,1821.1,1821.0,5.49148819]
[1746469775638,0.30807667,1821.1,1820.9,10.98319161]
[1746469776244,0.30807667,1821.0,1820.9,5.49158946]
[1746469777151,0.30807667,1821.1,1820.9,5.49158946]
[1746469777846,0.30807667,1821.0,1820.9,5.49158946]
[1746469778444,0.30807667,1821.1,1820.9,5.49158946]
[1746469778957,0.30807667,1821.0,1820.8,10.02481956]
[1746469779107,0.30807667,1821.0,1820.9,5.49176977]
[1746469780549,0.30807667,1821.0,1820.8,10.02481956]
[1746469780752,0.30807667,1821.0,1820.8,15.51673929]
[1746469780981,0.30807667,1821.0,1820.9,5.49178977]
[1746469783860,0.30807667,1821.0,1820.9,7.0434507]
[1746469786473,0.30807667,1821.0,1820.9,5.49178977]
[1746469790568,0.30807667,1821.0,1820.9,6.25328977]
[1746469791063,0.30807667,1821.0,1820.9,6.30819523]
[1746469791441,0.30807667,1821.4,1821.3,5.49058364]
[1746469793070,0.30807667,1821.4,1821.3,6.36128428]
[1746469793241,0.30807667,1821.4,1821.3,7.86435544]
[1746469793440,0.30807667,1821.8,1821.7,5.48937805]
[1746469797287,0.30807667,1821.9,1821.7,10.9787561]
[1746469798188,0.30807667,1821.9,1821.8,5.48907673]
[1746469800386,0.30807667,1821.9,1821.7,5.48937805]
[1746469800548,0.30807667,1821.9,1821.6,5.48947681]
[1746469800753,0.7882,1821.8,1821.6,10.97896305]
[1746469801070,0.7882,1821.8,1821.7,5.48937805]
[1746469801270,0.7882,1821.8,1821.5,5.4897688]
[1746469801585,0.30807667,1821.7,1821.6,5.48966328]
[1746469806302,0.30807667,1821.7,1821.6,6.58760649]
[1746469806709,0.30807667,1821.7,1821.6,6.64249831]
[1746469807097,0.8165,1822.0,1821.8,5.48900656]
[1746469807605,0.8165,1822.0,1821.7,5.48923811]
[1746469807606,0.30774811,1821.9,1821.7,5.48923811]
[1746469808403,0.30774811,1821.8,1821.7,5.48923811]
[1746469809101,0.30774811,1821.9,1821.7,10.97845759]
[1746469809307,0.30774811,1821.9,1821.7,5.48921948]
[1746469809809,0.7518,1821.8,1821.5,5.48971795]
[1746469810104,0.7518,1821.8,1821.6,10.9792523]
[1746469810309,0.7518,1821.8,1821.6,10.97905158]
[1746469810488,0.7518,1821.8,1821.7,5.48937805]
[1746469810683,1.05954811,1821.8,1821.7,5.48937805]
[1746469811386,1.05954811,1821.8,1821.6,5.48946157]
[1746469812282,0.30774811,1821.7,1821.6,5.48946157]
[1746469814412,0.30774811,1821.7,1821.6,6.58739343]
[1746469814911,0.8065,1822.0,1821.7,5.48930966]
[1746469814912,1.11424811,1822.0,1821.7,5.48930966]
[1746469815095,1.11424811,1822.0,1821.7,5.48917223]
[1746469815410,1.11424811,1822.0,1821.8,5.48885882]
[1746469815713,16.1442017,1822.2,1821.8,5.48885882]
[1746469815714,0.30774811,1821.9,1821.8,5.48885882]
[1746469815886,0.30774811,1821.9,1821.7,5.48916248]
[1746469816305,0.30774811,1821.9,1821.8,5.48907673]
[1746469816505,0.30774811,1821.9,1821.7,5.48916248]
[1746469817225,0.30774811,1821.8,1821.7,5.48916248]
[1746469819701,0.30774811,1821.8,1821.6,5.4895037]
[1746469820325,0.30774811,1821.8,1821.5,5.48988962]
[1746469820326,5.79692882,1821.8,1821.5,5.48988962]
[1746469820489,1.06654811,1821.8,1821.6,5.48966278]
[1746469820822,0.30774811,1821.7,1821.4,10.01799606]
[1746469821022,0.30774811,1821.7,1821.4,15.50806004]
[1746469821227,0.30774811,1821.7,1821.4,10.01799606]
[1746469821397,0.30774811,1821.6,1821.4,10.01799606]
[1746469821725,5.49118664,1821.1,1821.0,26.39428185]
[1746469822032,5.79893475,1821.1,1820.9,3.70628185]
[1746469822214,0.30774811,1821.1,1820.9,3.70628185]
[1746469822387,0.30774811,1821.0,1820.9,3.70628185]
[1746469822595,0.30774811,1821.0,1820.9,9.19807162]
[1746469824296,0.30774811,1821.3,1821.1,5.49113224]
[1746469824929,0.30774811,1821.3,1821.0,5.49129726]
[1746469825315,0.30774811,1821.3,1821.0,10.98256964]
[1746469825515,0.30774811,1821.2,1821.0,10.98256964]
[1746469826295,0.30774811,1821.1,1821.0,5.49127238]
[1746469826827,0.30774811,1821.3,1821.1,5.49115047]
[1746469827608,0.30774811,1821.3,1821.0,5.49127238]
[1746469828106,0.30774811,1821.2,1821.1,5.49118051]
[1746469828628,0.30774811,1821.3,1820.9,5.49161577]
[1746469828828,5.49133475,1821.1,1820.7,10.02014912]
[1746469829034,0.54913348,1821.0,1820.8,5.49205018]
[1746469829201,6.28266469,1821.2,1820.8,5.49205018]
[1746469829398,0.30774811,1821.1,1820.9,5.49177946]
[1746469830039,0.30774811,1821.1,1821.0,5.49148819]
[1746469830841,0.30774811,1821.1,1821.0,8.72507981]
[1746469830998,0.30774811,1821.1,1821.0,9.54397981]
[1746469831331,0.30774811,1821.5,1821.4,5.4902822]
[1746469833129,0.30774811,1821.6,1821.4,5.4902822]
[1746469833534,0.30774811,1821.6,1821.4,5.49011183]
[1746469835356,0.30774811,1821.6,1821.5,5.48998078]
[1746469835727,0.30774811,1821.6,1821.4,5.49011183]
[1746469836220,0.30774811,1821.5,1821.4,5.49011183]
[1746469836654,0.30774811,1821.7,1821.4,10.98022035]
[1746469837057,0.30774811,1821.7,1821.5,5.48996315]
[1746469837614,0.30774811,1821.6,1821.5,5.48996315]
[1746469838544,0.30774811,1821.7,1821.5,5.48996315]
[1746469839160,0.30774811,1821.6,1821.5,5.48996315]
[1746469839562,0.30774811,1821.6,1821.5,6.58797032]
[1746469839947,0.30774811,1821.9,1821.8,5.48907673]
[1746469840131,0.30774811,1821.9,1821.7,5.48937564]
[1746469840465,0.30774811,1821.9,1821.7,10.97853807]
[1746469840659,0.30774811,1821.9,1821.7,5.48916243]
[1746469841238,0.30774811,1821.8,1821.7,5.48916243]
[1746469842055,0.30774811,1821.9,1821.7,10.97832439]
[1746469842265,0.30774811,1821.9,1821.7,5.48916196]
[1746469842777,0.30774811,1821.9,1821.8,5.48907673]
[1746469842981,11.0398,1822.0,1821.8,5.48907673]
[1746469843774,11.0398,1822.0,1821.8,5.48888857]
[1746469843943,0.30804879,1821.9,1821.8,5.48888857]
[1746469844976,0.30804879,1821.9,1821.8,5.48907673]
[1746469845172,0.30804879,1821.9,1821.7,5.48918195]
[1746469845366,11.0398,1822.0,1821.8,5.48907673]
[1746469845795,0.8295,1822.2,1821.7,6.1133092]
[1746469846089,0.30801441,1822.1,1821.9,5.48848072]
[1746469846966,0.30801441,1822.0,1821.9,5.48848072]
[1746469849993,0.30801441,1822.0,1821.8,5.48889961]
[1746469850287,0.30801441,1822.0,1821.7,6.11316069]
[1746469850486,0.30801441,1821.9,1821.7,6.11316069]
[1746469850891,5.48826746,1822.1,1821.7,6.11316069]
[1746469851055,6.31756489,1822.2,1821.8,5.48896849]
[1746469851256,0.8295,1822.2,1822.0,5.48837187]
[1746469851776,0.30783029,1822.1,1822.0,5.48837187]
[1746469852172,0.30783029,1822.1,1821.9,5.48876681]
[1746469852488,0.30783029,1822.0,1821.9,5.48877545]
[1746469853247,0.30783029,1822.1,1821.9,5.48877545]
[1746469853486,0.30783029,1822.1,1821.9,5.48856041]
[1746469853881,0.30783029,1822.1,1822.0,5.4884742]
[1746469854589,0.30783029,1822.1,1821.9,5.48856041]
[1746469854809,0.30783029,1822.1,1822.0,5.4884742]
[1746469854992,0.30783029,1822.1,1821.9,10.97715877]
[1746469855173,0.30783029,1822.1,1822.0,5.4884742]
[1746469855793,14.81563025,1822.3,1822.0,5.4884742]
[1746469855794,0.30783029,1822.2,1822.0,5.4884742]
[1746469856303,5.74286034,1822.8,1822.0,5.4884742]
[1746469856304,20.10368037,1823.0,1822.7,5.48636637]
[1746469856474,1.87815126,1823.3,1823.2,6.03486178]
[1746469856676,1.87815126,1823.3,1823.2,21.45638989]
[1746469857012,1.87815126,1823.3,1823.2,21.40156131]
[1746469857179,0.73365283,1823.3,1823.2,21.40156131]
[1746469857517,0.73365283,1823.3,1823.2,18.22288518]
[1746469857806,0.73365283,1823.3,1823.2,17.55053791]
[1746469858305,2.02941176,1823.8,1823.7,9.47203413]
[1746469858505,2.02941176,1823.8,1823.7,14.76603413]
[1746469859405,2.02941176,1823.8,1823.7,17.76603413]
[1746469859929,2.02941176,1823.8,1823.7,20.44292862]
[1746469860269,2.02941176,1823.8,1823.7,20.86096518]
[1746469860907,2.02941176,1823.8,1823.7,20.85896518]
[1746469861269,2.02941176,1823.8,1823.7,26.98896518]
[1746469862269,2.18067227,1824.4,1824.2,5.48185505]
[1746469862475,2.18067227,1824.4,1824.2,20.41912567]
[1746469863212,2.18067227,1824.4,1824.2,6.82155505]
[1746469863532,2.18067227,1824.4,1824.2,17.47392908]
[1746469863809,2.18067227,1824.4,1824.2,17.41912567]
[1746469864169,2.18067227,1824.4,1824.2,11.01355505]
[1746469864815,2.18067227,1824.4,1824.2,5.48185505]
[1746469865196,2.18067227,1824.4,1824.2,10.22285505]
[1746469865400,2.18067227,1824.4,1824.2,10.27766517]
[1746469865768,2.18067227,1824.4,1824.2,10.22285505]
[1746469866001,2.18067227,1824.4,1824.2,10.27766432]
[1746469866202,0.25952441,1824.5,1824.4,5.48125411]
[1746469868019,0.25952441,1824.5,1824.3,5.48143883]
[1746469868380,0.25952441,1824.5,1824.3,5.48136261]
[1746469869613,5.48136008,1824.4,1824.0,5.4823754]
[1746469869805,6.05544853,1824.4,1824.1,4.74]
[1746469870924,0.8021,1824.2,1824.0,5.48235823]
[1746469871125,0.8021,1824.2,1823.9,10.22255491]
[1746469871335,0.8021,1824.2,1824.0,5.48234592]
[1746469872342,0.8021,1824.2,1824.0,5.48229171]
[1746469872890,0.8021,1824.2,1823.9,10.22261067]
[1746469873095,1.43046652,1824.2,1823.9,10.22261067]
[1746469873294,6.91234371,1824.2,1823.9,4.74]
[1746469873915,5.48218083,1824.1,1823.9,4.74]
[1746469874088,6.91247104,1824.2,1823.9,4.74]
[1746469874290,6.91252427,1824.2,1823.9,4.74]
[1746469874500,6.1734361,1824.1,1823.9,4.74]
[1746469875308,0.69125243,1824.1,1823.9,10.2226798]
[1746469875512,0.69125243,1824.1,1823.9,4.74]
[1746469875727,0.69125243,1824.1,1823.8,5.48287058]
[1746469876226,0.69125243,1824.1,1823.8,5.48286594]
[1746469876392,0.69125243,1824.1,1823.9,5.48257177]
[1746469876593,6.28399275,1824.2,1823.9,5.48257177]
[1746469876928,5.48229125,1824.1,1823.7,10.22313298]
[1746469877300,5.48229125,1824.1,1823.7,15.70632465]
[1746469877500,5.48229125,1824.1,1823.8,5.48304287]
[1746469877918,6.28410455,1824.2,1823.8,5.48304287]
[1746469878216,0.62841046,1824.1,1823.8,5.48304287]
[1746469878529,0.62841046,1824.1,1823.8,5.48290305]
[1746469878751,0.8021,1824.2,1823.9,5.48274136]
[1746469879042,0.8021,1824.2,1823.8,5.4828599]
[1746469879247,6.28404664,1824.2,1823.8,5.48283841]
[1746469879745,6.28404664,1824.2,1823.8,10.96568712]
[1746469879946,6.28404664,1824.2,1823.8,10.96571186]
[1746469880146,7.46062024,1824.2,1823.8,10.96571186]
[1746469880346,7.46062024,1824.2,1823.8,10.9656999]
[1746469880656,7.46062024,1824.2,1823.8,5.48283841]
[1746469880831,5.48255717,1824.0,1823.7,10.22322844]
[1746469881160,5.48219373,1824.1,1823.7,10.22322844]
[1746469881330,0.54821937,1824.0,1823.7,10.22322844]
[1746469881521,6.03068104,1824.0,1823.7,10.22322844]
[1746469881850,6.03068104,1824.0,1823.7,4.74]
[1746469882047,6.3093593,1823.9,1823.7,4.74]
[1746469882249,5.48305735,1823.8,1823.7,4.74]
[1746469882552,1.0726381,1823.8,1823.6,5.48353718]
[1746469882754,0.8266,1823.9,1823.6,5.48345444]
[1746469882960,6.30938729,1823.9,1823.6,5.48357289]
[1746469883142,6.30938729,1823.9,1823.5,5.48374726]
[1746469883522,6.30938729,1823.9,1823.5,11.02235209]
[1746469883722,0.54821937,1824.0,1823.5,0.05483354]
[1746469883940,5.48250456,1824.0,1823.7,5.48320111]
[1746469884444,16.54888284,1824.1,1823.7,5.48320111]
[1746469886151,16.54897185,1824.1,1823.4,4.74]
[1746469886357,5.48256084,1824.0,1823.6,5.48345452]
[1746469886649,10.96526202,1824.0,1823.6,5.48345452]
[1746469886831,6.57932184,1823.9,1823.5,5.5386314]
[1746469887231,1.0965262,1823.9,1823.6,5.48345738]
[1746469887432,5.48256084,1824.0,1823.6,5.48343804]
[1746469887750,10.96537962,1824.0,1823.6,5.48343804]
[1746469888054,5.48267771,1824.0,1823.6,5.48343804]
[1746469888265,5.48283102,1823.9,1823.5,5.48387897]
[1746469888423,5.48283102,1823.9,1823.4,10.22411413]
[1746469888424,5.4831959,1823.8,1823.4,10.22411413]
[1746469888622,1.17886269,1823.8,1823.4,10.27892213]
[1746469888828,1.17886269,1823.8,1823.5,5.48381458]
[1746469889571,1.17886269,1823.8,1823.5,5.48379904]
[1746469889926,1.17886269,1823.8,1823.5,5.48375148]
[1746469890351,1.17886269,1823.8,1823.5,5.48374461]
[1746469890551,0.8226,1823.9,1823.6,5.53822785]
[1746469890742,0.8226,1823.9,1823.6,5.48339282]
[1746469892172,0.8226,1823.9,1823.5,0.05483115]
[1746469892476,10.9988,1824.1,1823.8,5.48294219]
[1746469894132,10.9988,1824.1,1823.7,5.4831838]
[1746469894133,16.48100831,1824.1,1823.7,5.4831838]
[1746469894370,5.48247755,1824.0,1823.5,0.8014]
[1746469894575,5.48247755,1824.0,1823.6,5.48345038]
[1746469894889,5.48247755,1824.0,1823.6,10.96690801]
[1746469895474,5.48247755,1824.0,1823.6,10.96690664]
[1746469895632,5.48247755,1824.0,1823.6,5.48344137]
[1746469895960,7.9402214,1824.0,1823.6,5.48344137]
[1746469896756,5.4827805,1823.9,1823.5,5.48378792]
[1746469897060,0.7846,1823.8,1823.6,5.48347853]
[1746469897250,6.24234385,1824.0,1823.7,5.483358]
[1746469898273,6.24234385,1824.0,1823.7,10.96632443]
[1746469898423,0.7846,1824.0,1823.8,5.48302166]
[1746469899643,0.7846,1824.0,1823.7,5.48319802]
[1746469900041,0.7846,1824.0,1823.7,11.02112847]
[1746469900666,0.7846,1824.0,1823.8,5.48305117]
[1746469901042,0.7846,1824.0,1823.7,5.48314773]
[1746469901256,0.7846,1824.0,1823.8,5.48297266]
[1746469901878,0.7846,1824.0,1823.7,5.48314773]
[1746469903259,0.7846,1824.0,1823.9,5.48275673]
[1746469903749,0.7846,1824.0,1823.8,5.48287998]
[1746469904251,0.7846,1824.0,1823.9,5.48275673]
[1746469905890,0.7846,1824.0,1823.8,10.96570067]
[1746469906285,0.7846,1824.0,1823.8,5.48284774]
[1746469906583,0.7846,1824.0,1823.8,10.96573146]
[1746469907160,0.7846,1824.0,1823.8,5.48284774]
[1746469907362,0.7846,1824.0,1823.8,5.48283893]
[1746469907747,0.7846,1824.0,1823.9,5.48275673]
[1746469907950,1.9877736,1824.2,1823.9,5.48275673]
[1746469908583,7.46973414,1824.2,1823.8,5.48288281]
[1746469908881,7.46973414,1824.2,1823.9,5.48271956]
[1746469909779,1.9877736,1824.2,1823.9,5.48271956]
[1746469909949,1.9877736,1824.2,1823.9,5.48259653]
[1746469910243,1.9877736,1824.2,1823.9,10.96516614]
[1746469910893,10.24,1824.3,1824.0,5.48234326]
[1746469911199,10.24,1824.3,1824.0,0.05482023]
[1746469911356,10.24,1824.3,1824.1,5.48188253]
[1746469911557,10.24,1824.3,1824.2,5.48185505]
[1746469911893,0.25952441,1824.5,1824.2,5.48185505]
[1746469912067,0.25952441,1824.5,1824.2,5.48166804]
[1746469912262,0.25952441,1824.5,1824.3,5.48131937]
[1746469912580,0.25952441,1824.5,1824.4,5.48125411]
[1746469915758,0.25952441,1824.5,1824.2,6.23796371]
[1746469916087,1.30947685,1824.5,1824.3,5.48154778]
[1746469916293,0.8226,1824.4,1824.2,5.48166371]
[1746469917063,0.8226,1824.4,1824.3,5.48155456]
[1746469917264,1.30947685,1824.5,1824.3,5.48146024]
[1746469917595,1.30947685,1824.5,1824.3,5.48136867]
[1746469921667,1.30947685,1824.5,1824.2,5.481655]
[1746469921896,1.30947685,1824.5,1824.3,5.48152688]
[1746469922463,1.30947685,1824.5,1824.2,5.48167905]
[1746469922693,0.25952441,1824.5,1824.3,5.48144833]
[1746469923466,0.25952441,1824.5,1824.3,5.48139654]
[1746469923681,0.25952441,1824.5,1824.4,5.48125411]
[1746469924027,0.25952441,1824.5,1824.3,5.48138633]
[1746469924387,0.25952441,1824.5,1824.3,10.96273895]
[1746469924587,0.25952441,1824.5,1824.3,5.48135262]
[1746469925099,0.25952441,1824.5,1824.4,5.48125411]
[1746469925306,0.25952441,1824.5,1824.4,5.53606147]
[1746469927532,0.25952441,1824.5,1824.4,5.48125411]
[1746469928092,0.25952441,1824.5,1824.4,5.53606025]
[1746469928784,0.25952441,1824.5,1824.4,5.48125411]
[1746469928999,0.25952441,1824.5,1824.4,5.53605723]
[1746469930042,0.25952441,1824.5,1824.4,5.48125411]
[1746469932037,0.25952441,1824.5,1824.2,0.8251]
[1746469932245,1.01592441,1824.5,1824.2,5.48161756]
[1746469932399,1.66559898,1824.5,1824.2,5.48161756]
[1746469932740,7.14667644,1824.5,1824.1,5.48194367]
[1746469932898,7.14667644,1824.5,1824.1,10.96393117]
[1746469933092,7.14667644,1824.5,1824.1,5.48194367]
[1746469933320,7.14667644,1824.5,1824.1,5.48194281]
[1746469933597,0.71466764,1824.4,1824.1,5.48194281]
[1746469933798,7.14667644,1824.5,1824.2,5.48184064]
[1746469934533,7.14667644,1824.5,1824.1,5.48194281]
[1746469934909,5.48128786,1824.4,1824.1,5.48194281]
[1746469935300,5.48128786,1824.4,1824.0,5.53706756]
[1746469935495,0.8124,1824.2,1823.9,5.48264187]
[1746469935731,0.8124,1824.2,1824.0,5.48240757]
[1746469935931,0.8124,1824.2,1823.9,5.48264187]
[1746469936637,5.48230172,1824.1,1823.7,24.39212269]
[1746469936811,0.8124,1824.0,1823.7,28.32922269]
[1746469939814,6.2948626,1824.0,1823.7,28.32922269]
[1746469940435,6.2948626,1824.0,1823.7,10.19622269]
[1746469941306,0.8124,1824.0,1823.7,10.19622269]
[1746469941738,6.29490279,1824.0,1823.7,10.19622269]
[1746469941924,0.8124,1824.0,1823.7,10.19622269]
[1746469942308,6.29486457,1824.0,1823.7,4.713]
[1746469942830,7.51321352,1824.0,1823.7,4.713]
[1746469943004,5.48288312,1823.9,1823.7,4.713]
[1746469943418,7.51321352,1824.0,1823.7,10.19633338]
[1746469943827,7.51321352,1824.0,1823.7,4.713]
[1746469944325,12.99592946,1824.0,1823.7,4.713]
[1746469944635,7.51321352,1824.0,1823.7,4.713]
[1746469944958,2.03074895,1824.0,1823.7,4.713]
[1746469945123,2.03074895,1824.0,1823.4,5.48414244]
[1746469945124,5.48305735,1823.8,1823.4,5.48414244]
[1746469945328,0.8049,1823.7,1823.5,4.714]
[1746469945530,0.8049,1823.7,1823.5,10.19786966]
[1746469947536,0.8049,1823.7,1823.5,4.714]
[1746469949417,0.8049,1823.7,1823.5,10.19785614]
[1746469950542,0.8049,1823.7,1823.5,4.714]
[1746469952113,0.8049,1823.7,1823.5,10.19784094]
[1746469952435,0.8049,1823.7,1823.5,10.19776034]
[1746469953553,0.8049,1823.7,1823.5,10.19795021]
[1746469954159,0.8049,1823.7,1823.5,4.714]
[1746469954465,0.8049,1823.7,1823.5,10.19789046]
[1746469954980,6.25569406,1823.9,1823.5,10.19779715]
[1746469955955,0.7728,1823.9,1823.5,4.714]
[1746469956319,0.7728,1823.9,1823.6,5.48352795]
[1746469957119,0.7728,1823.9,1823.7,5.48330325]
[1746469957324,1.19566871,1824.1,1823.8,5.48284208]
[1746469957537,0.7894,1824.1,1823.9,5.48274913]
[1746469957739,9.27099119,1824.3,1823.8,5.53770831]
[1746469957939,5.48196375,1824.2,1823.8,5.48283763]
[1746469958362,9.27099119,1824.3,1823.9,5.48264821]
[1746469958554,8.00328399,1824.3,1823.9,5.48264821]
[1746469958956,5.48209986,1824.2,1823.8,5.48283763]
[1746469959572,5.48208774,1824.2,1823.8,5.48283763]
[1746469960073,8.00339274,1824.3,1824.0,5.48244462]
[1746469960272,8.00339274,1824.3,1823.9,5.48271539]
[1746469960273,2.5216928,1824.3,1823.9,5.48255418]
[1746469960985,8.00334555,1824.3,1823.9,5.48253457]
[1746469961148,8.00334555,1824.3,1823.9,5.53735631]
[1746469961347,8.00334555,1824.3,1823.9,5.48253457]
[1746469962068,8.00334555,1824.3,1824.0,5.48239822]
[1746469962375,8.00334555,1824.3,1823.9,10.9650785]
[1746469962575,8.00334555,1824.3,1823.9,10.96510328]
[1746469962776,8.00334555,1824.3,1823.9,5.48253457]
[1746469963103,8.00334555,1824.3,1824.0,5.48244324]
[1746469965388,8.00334555,1824.3,1823.9,6.26019801]
[1746469965563,5.48192582,1824.2,1823.8,5.48281766]
[1746469965887,5.48192582,1824.2,1823.8,10.96572517]
[1746469966292,7.58610682,1824.3,1823.9,5.4826536]
[1746469966455,5.48230626,1824.1,1823.7,6.30928713]
[1746469966655,0.8263,1824.0,1823.8,5.48301859]
[1746469967982,0.8263,1824.0,1823.7,6.30926112]
[1746469968181,6.30877929,1824.0,1823.7,5.48316112]
[1746469968383,6.30877929,1824.0,1823.6,5.5383482]
[1746469968384,0.63087793,1823.9,1823.6,10.15348644]
[1746469968593,9.47289551,1824.0,1823.6,4.67]
[1746469969168,14.95562272,1824.0,1823.6,10.15357091]
[1746469969369,3.99030586,1824.0,1823.6,10.15343803]
[1746469969970,3.99030586,1824.0,1823.7,5.48332844]
[1746469970179,3.99030586,1824.0,1823.7,5.48315358]
[1746469973387,4.93755564,1824.0,1823.7,5.48315358]
[1746469974324,4.93755564,1824.0,1823.7,10.96635292]
[1746469974519,4.93755564,1824.0,1823.8,5.48290916]
[1746469974721,3.0,1824.1,1823.8,5.48298326]
[1746469974924,0.8263,1824.2,1824.0,5.48221978]
[1746469976135,10.24,1824.3,1824.1,5.48215558]
[1746469976353,10.24,1824.3,1823.7,0.8066]
[1746469976633,11.72576764,1824.4,1824.1,5.48200436]
[1746469976821,1.17257676,1824.3,1824.1,5.48200436]
[1746469978410,11.72576764,1824.4,1824.1,5.48200436]
[1746469978943,0.25952441,1824.5,1824.2,0.7603]
[1746469979136,0.25952441,1824.5,1824.4,5.48125411]
[1746469984248,0.25952441,1824.5,1824.4,5.53605909]
[1746469987133,0.25952441,1824.5,1824.4,6.25835411]
[1746469988373,0.25952441,1824.5,1824.4,6.31315719]
[1746469989074,0.25952441,1824.5,1824.4,6.25835411]
[1746469989635,0.25952441,1824.5,1824.4,6.31315718]
[1746469990494,0.25952441,1824.5,1824.4,6.25835411]
[1746469992395,0.25952441,1824.5,1824.4,6.31315747]
[1746469993579,0.25952441,1824.5,1824.4,6.25835411]
[1746469993780,0.25952441,1824.5,1824.4,5.48125411]
[1746469994490,0.25952441,1824.5,1824.4,5.53606045]
[1746469995991,5.48245614,1824.0,1823.6,4.659]
[1746469996169,0.54824561,1824.0,1823.6,4.659]
[1746469996365,0.8163,1824.2,1823.8,5.48292142]
[1746469996598,0.87830498,1824.4,1823.9,9.24385581]
[1746469996901,0.25952441,1824.5,1824.2,5.48178977]
[1746469997061,0.25952441,1824.5,1824.2,5.48162703]
[1746469998498,0.25952441,1824.5,1824.2,10.9633008]
[1746469998660,0.25952441,1824.5,1824.2,5.48162703]
[1746469999285,0.25952441,1824.5,1824.4,5.48125411]
[1746469999690,0.25952441,1824.5,1824.3,5.48152838]
[1746470000297,0.25952441,1824.5,1824.4,6.28805411]
[1746470000484,0.25952441,1824.5,1824.4,6.34285841]
[1746470001003,0.25952441,1824.5,1824.4,6.28805411]
[1746470003602,0.25952441,1824.5,1824.4,6.3428585]
[1746470004396,0.25952441,1824.5,1824.4,6.28805411]
[1746470004777,0.25952441,1824.5,1824.4,5.48125411]
[1746470005366,0.25952441,1824.5,1824.4,5.53605847]
[1746470008808,0.25952441,1824.5,1824.4,10.19405847]
[1746470014616,0.25952441,1824.5,1824.4,10.94635852]
[1746470018028,0.20952441,1824.5,1824.4,10.94635852]
[1746470018926,0.20952441,1824.5,1824.4,13.94635852]
[1746470019091,0.20952441,1824.5,1824.4,13.89155411]
[1746470019295,0.20952441,1824.5,1824.4,14.40241491]
[1746470020128,0.20832441,1824.5,1824.4,14.40241491]
[1746470020344,0.20832441,1824.5,1824.4,14.95241491]
[1746470023320,0.20832441,1824.5,1824.4,15.36200778]
[1746470023956,0.20832441,1824.5,1824.4,18.28998337]
[1746470024629,2.33193277,1824.9,1824.8,5.4800526]
[1746470024951,2.33193277,1824.9,1824.8,10.1620526]
[1746470025570,2.33193277,1824.9,1824.8,13.9383526]
[1746470025735,2.33193277,1824.9,1824.8,16.78350482]
[1746470025936,3.71497479,1827.0,1826.4,5.47525186]
[1746470026138,2.43728908,1827.0,1826.9,5.47375335]
[1746470026443,0.63221313,1827.0,1826.9,16.82711726]
[1746470026651,1.177311,1827.9,1827.3,5.47240852]
[1746470026971,1.177311,1827.9,1827.5,5.47181174]
[1746470027147,1.177311,1827.9,1827.0,3.0]
[1746470027148,0.06200498,1827.8,1827.3,5.47239352]
[1746470027344,1.177311,1827.9,1827.5,5.47177488]
[1746470027535,1.23931598,1827.9,1827.2,5.47277783]
[1746470027738,0.408311,1827.9,1827.4,0.7763]
[1746470028038,0.408311,1827.9,1827.3,4.909]
[1746470028039,5.47111525,1827.8,1827.3,4.909]
[1746470028264,0.769,1827.6,1827.0,3.0]
[1746470028462,0.769,1827.6,1826.9,4.909]
[1746470028775,0.769,1827.6,1827.2,5.47271005]
[1746470029004,0.769,1827.6,1827.0,0.05472171]
[1746470029281,5.676,1827.6,1826.9,10.38256782]
[1746470029576,0.5676,1827.5,1827.3,5.47254182]
[1746470029736,0.769,1827.6,1827.3,5.47254182]
[1746470029935,0.769,1827.6,1827.1,5.47293846]
[1746470029936,0.769,1827.6,1827.2,5.52743451]
[1746470030181,0.769,1827.6,1827.2,5.52748641]
[1746470030390,0.769,1827.6,1827.2,0.05471839]
[1746470030590,1.227811,1827.9,1827.5,5.47192251]
[1746470030947,1.227811,1827.9,1827.4,5.52675986]
[1746470031386,1.227811,1827.9,1827.4,10.99875176]
[1746470031685,1.227811,1827.9,1827.5,5.47179892]
[1746470032061,1.227811,1827.9,1827.4,5.52670248]
[1746470032062,1.227811,1827.9,1827.4,5.52680573]
[1746470032261,1.28981598,1827.9,1827.4,5.52680573]
[1746470032580,1.28981598,1827.9,1827.4,0.05471058]
[1746470032885,1.28981598,1827.9,1827.4,5.52690426]
[1746470033386,1.28981598,1827.9,1827.1,5.47290352]
[1746470033550,20.0008597,1827.9,1827.0,5.47333935]
[1746470033749,5.47147121,1827.7,1827.0,5.47333671]
[1746470034069,0.06200498,1827.6,1827.1,0.05472348]
[1746470034283,0.06200498,1827.6,1827.1,11.00077378]
[1746470034580,0.06200498,1827.6,1827.1,5.52763899]
[1746470034787,5.53369957,1827.6,1827.1,5.52763899]
[1746470034988,0.55336996,1827.5,1827.1,5.52763899]
[1746470035312,5.00008597,1827.8,1827.3,5.47239506]
[1746470035478,2.00008597,1827.8,1827.5,5.47170894]
[1746470035681,2.00008597,1827.8,1827.6,5.52624572]
[1746470035880,2.00008597,1827.8,1827.6,0.05471563]
[1746470036081,1.227811,1827.9,1827.7,5.47127162]
[1746470036281,0.408311,1827.9,1827.7,5.47127162]
[1746470036499,0.408311,1827.9,1827.6,5.4716538]
[1746470036714,0.408311,1827.9,1827.3,16.20936766]
[1746470036894,0.408311,1827.9,1827.5,5.47185337]
[1746470037211,5.8792125,1827.9,1827.4,5.52671437]
[1746470037412,0.58792125,1827.8,1827.6,5.47165303]
[1746470037613,0.408311,1827.9,1827.6,5.47165303]
[1746470037815,0.408311,1827.9,1827.6,5.52636152]
[1746470038002,0.408311,1827.9,1827.6,0.05470849]
[1746470038516,5.87911084,1827.9,1827.5,0.05470953]
[1746470038705,5.87911084,1827.9,1827.5,5.52652853]
[1746470038889,0.58791108,1827.8,1827.5,10.99828188]
[1746470039090,6.05899416,1827.8,1827.5,0.05470953]
[1746470039282,6.22409809,1827.7,1827.3,10.37652014]
[1746470039489,6.22409809,1827.7,1827.4,0.05471458]
[1746470039821,6.22409809,1827.7,1827.3,10.37633385]
[1746470040018,6.09418477,1827.6,1827.4,0.05471451]
[1746470040315,6.09421309,1827.6,1827.1,5.52768731]
[1746470040517,0.62240981,1827.6,1827.2,5.52746371]
[1746470040708,5.87920844,1827.9,1827.5,5.47192309]
[1746470040914,0.408311,1827.9,1827.6,5.47161504]
[1746470041110,0.408311,1827.9,1827.7,0.05470878]